fUST/lending_fUST_20260304
["ID","MTS","AMOUNT","RATE_DAILY","PERIOD"]
[407639245,1772592345874,-3616.07277226,0.0001,2]
[407639246,1772592345895,-151.0,0.0001,2]
[407639247,1772592345918,-156.25862782,0.0001,2]
[407639248,1772592464570,2000.0,1.12e-06,30]
[407639264,1772592631819,-480.43172694,0.0001,2]
[407639266,1772592631832,-572.94426284,0.0001,2]
[407639268,1772592631842,-560.0,0.0001,2]
[407639270,1772592631853,-300.0,0.00010092,2]
[407639272,1772592631862,-1200.0,0.00010092,2]
[407639274,1772592631872,-215.37232355,0.00010093,2]
[407639276,1772592631881,-500.0,0.00010093,2]
[407639278,1772592631894,-501.01071191,0.00010093,2]
[407639280,1772592631903,-500.0,0.00010093,2]
[407639282,1772592631913,-500.0,0.00010093,2]
[407639285,1772592631923,-500.0,0.00010093,2]
[407639288,1772592631933,-500.0,0.00010093,2]
[407639292,1772592631942,-500.0,0.00010093,2]
[407639295,1772592631956,-500.0,0.00010093,2]
[407639298,1772592631966,-500.0,0.00010093,2]
[407639301,1772592631976,-500.0,0.00010093,2]
[407639304,1772592631986,-500.0,0.00010093,2]
[407639308,1772592631996,-500.0,0.00010093,2]
[407639311,1772592632005,-500.0,0.00010093,2]
[407639314,1772592632015,-500.0,0.00010093,2]
[407639317,1772592632025,-451.70446644,0.00010093,2]
[407639416,1772592638547,-300.0,0.00010093,2]
[407639417,1772592638559,-338.07741889,0.00010094,2]
[407639418,1772592638646,-4984.2985848,0.00010094,2]
[407639419,1772592638656,-500.0,0.00010095,2]
[407639420,1772592638666,-418.34216716,0.00010311,2]
[407639421,1772592638675,-3776.4257884,0.00010312,2]
[407639422,1772592638685,-168.3888056,0.00010332,2]
[407639423,1772592638695,-174.61919141,0.00010332,2]
[407639424,1772592638705,-181.08010149,0.00010332,2]
[407639425,1772592638715,-187.78006525,0.00010332,2]
[407639426,1772592638725,-194.72792766,0.00010332,2]
[407639427,1772592638735,-201.93286099,0.00010332,2]
[407639428,1772592638744,-209.40437684,0.00010332,2]
[407639429,1772592638754,-557.5788265,0.00010332,2]
[407639430,1772592638764,-217.15233878,0.00010332,2]
[407639431,1772592638775,-225.18697532,0.00010332,2]
[407639432,1772592638785,-233.51889341,0.00010332,2]
[407639433,1772592638795,-2230.315306,0.00010332,2]
[407639434,1772592638805,-242.15909246,0.00010332,2]
[407639435,1772592638815,-251.11897888,0.00010332,2]
[407639436,1772592638825,-260.4103811,0.00010332,2]
[407639437,1772592638835,-270.0455652,0.00010332,2]
[407639438,1772592638844,-280.03725112,0.00010332,2]
[407639439,1772592638854,-290.39862941,0.00010332,2]
[407639440,1772592638863,-301.1433787,0.00010332,2]
[407639441,1772592638873,-6554.46030436,0.00010359,2]
[407639442,1772592638882,-476.02455988,0.00010368,2]
[407639443,1772592638892,-500.0,0.00010369,2]
[407639444,1772592638902,-346.66880815,0.0001041,2]
[407639445,1772592638912,-396.1929236,0.0001041,2]
[407639446,1772592638922,-618.43239168,0.0001041,2]
[407639447,1772592638931,-389.12334097,0.0001041,2]
[407639448,1772592638940,-241.22554499,0.0001041,2]
[407639460,1772592640542,-459.19646876,0.0001041,2]
[407639461,1772592640555,-657.40428956,0.0001041,2]
[407639462,1772592641387,-417.38872198,0.0001041,2]
[407639468,1772592643080,-170.40167957,0.0001041,2]
[407639469,1772592643091,-1943.67108815,0.0001041,2]
[407639470,1772592643100,-3103.94793381,0.00010459,2]
[407639471,1772592643111,-4111.32773825,0.00010459,2]
[407639472,1772592643122,-1275.38190145,0.00010459,2]
[407639473,1772592643134,-1752.09264082,0.00010459,2]
[407639497,1772592645980,-500.0,0.0001,2]
[407639498,1772592645990,-1784.3012707,0.00010459,2]
[407639499,1772592646000,-150.0,0.00010465,2]
[407639500,1772592646010,-150.0,0.0001052,2]
[407639501,1772592646020,-6026.69358682,0.00010559,2]
[407639502,1772592646033,-7484.98933373,0.00010559,2]
[407639503,1772592646042,-714.39200095,0.00010562,2]
[407639504,1772592646139,-1472.60799905,0.00010562,2]
[407639505,1772592646153,-498.852022,0.00010571,2]
[407639506,1772592646163,-150.0,0.00010575,2]
[407639507,1772592646172,-165.16424428,0.000106,2]
[407639508,1772592646182,-186.71094519,0.00010629,2]
[407639509,1772592646191,-14996.31435617,0.00010659,2]
[407639510,1772592646201,-466.83276161,0.00010739,2]
[407639511,1772592646211,-16015.53826898,0.00010759,2]
[407639512,1772592646221,-164.0,0.000108,2]
[407639513,1772592646230,-543.28214821,0.000108,2]
[407639514,1772592646240,-553.73780779,0.000108,2]
[407639515,1772592646250,-2087.17725889,0.000108,2]
[407639516,1772592646259,-1250.38343692,0.000108,2]
[407639517,1772592646268,-7915.96198581,0.00010848,2]
[407639518,1772592646277,-578.20924308,0.0001088,2]
[407639519,1772592646287,-2312.83697232,0.0001088,2]
[407639520,1772592646296,-1519.65234166,0.00010913,3]
[407639521,1772592646305,-150.0,0.00010957,2]
[407639522,1772592646315,-9000.0,0.00010957,2]
[407639524,1772592646324,-9000.0,0.00010957,2]
[407639526,1772592646333,-2141.09005835,0.00010957,2]
[407639527,1772592646342,-500.0,0.00010958,2]
[407639529,1772592646351,-500.0,0.00010958,2]
[407639530,1772592646361,-19396.78465107,0.00010958,2]
[407639531,1772592646370,-1660.09,0.00010958,2]
[407639532,1772592646380,-860.66,0.00010958,2]
[407639533,1772592646390,-500.0,0.00010958,2]
[407639534,1772592646400,-500.0,0.00010958,2]
[407639535,1772592646409,-500.0,0.00010958,2]
[407639536,1772592646418,-1155.91,0.00010958,2]
[407639537,1772592646428,-500.0,0.00010958,2]
[407639538,1772592646437,-939.33,0.00010958,2]
[407639539,1772592646689,-500.0,0.00010958,2]
[407639540,1772592646699,-500.0,0.00010958,2]
[407639541,1772592646709,-500.0,0.00010958,2]
[407639542,1772592646719,-500.0,0.00010958,2]
[407639543,1772592646729,-1370.33,0.00010958,2]
[407639544,1772592646739,-500.0,0.00010958,2]
[407639545,1772592646750,-662.99,0.00010958,2]
[407639546,1772592646760,-500.0,0.00010958,2]
[407639547,1772592646770,-316.56677256,0.00010958,2]
[407639548,1772592646781,-500.0,0.00010958,2]
[407639549,1772592646791,-500.0,0.00010958,2]
[407639550,1772592646802,-500.0,0.00010958,2]
[407639551,1772592646812,-500.0,0.00010958,2]
[407639552,1772592646823,-494.69503935,0.00010958,2]
[407639553,1772592646832,-500.0,0.00010958,2]
[407639554,1772592646843,-500.0,0.00010958,2]
[407639555,1772592646853,-500.0,0.00010958,2]
[407639556,1772592646865,-500.0,0.00010958,2]
[407639557,1772592646875,-500.0,0.00010958,2]
[407639558,1772592646887,-500.0,0.00010958,2]
[407639559,1772592646897,-927.61,0.00010958,2]
[407639560,1772592646907,-505.23,0.00010958,2]
[407639561,1772592646917,-1172.07,0.00010958,2]
[407639562,1772592646926,-548.5,0.00010958,2]
[407639563,1772592646936,-500.0,0.00010958,2]
[407639564,1772592646945,-500.0,0.00010958,2]
[407639565,1772592646955,-500.0,0.00010958,2]
[407639566,1772592646964,-1906.98,0.00010958,2]
[407639567,1772592646973,-500.0,0.00010958,2]
[407639568,1772592646984,-500.0,0.00010958,2]
[407639569,1772592646994,-500.0,0.00010958,2]
[407639570,1772592647004,-259.05201363,0.00010958,2]
[407639571,1772592647014,-500.0,0.00010958,2]
[407639572,1772592647023,-500.0,0.00010958,2]
[407639573,1772592647033,-500.0,0.00010958,2]
[407639574,1772592647042,-938.54,0.00010958,2]
[407639575,1772592647051,-500.52578523,0.00010958,2]
[407639576,1772592647061,-500.85180517,0.00010958,2]
[407639577,1772592647070,-500.0,0.00010958,2]
[407639578,1772592647079,-500.20472437,0.00010958,2]
[407639579,1772592647089,-2582.22,0.00010958,2]
[407639580,1772592647099,-346.1383334,0.00010958,2]
[407639581,1772592647108,-500.88842617,0.00010958,2]
[407639582,1772592647118,-500.6937682,0.00010958,2]
[407639583,1772592647127,-500.67104752,0.00010958,2]
[407639584,1772592647136,-501.98423047,0.00010958,2]
[407639585,1772592647146,-500.0,0.00010958,2]
[407639586,1772592647155,-526.2219986,0.00010958,2]
[407639587,1772592647165,-500.0,0.00010958,2]
[407639588,1772592647175,-739.66,0.00010958,2]
[407639589,1772592647184,-45.39901552,0.00010958,2]
[407639590,1772592723903,271.85324968,9e-05,2]
[407639592,1772592793414,3000.0,0.000109,30]
[407639593,1772592793893,3000.0,0.0001091,30]
[407639594,1772592794430,2957.77049142,0.0001092,30]
[407639595,1772592957479,-42.22950858,0.0001092,30]
[407639596,1772592957501,-107.77049142,0.0001093,30]
[407639597,1772592959278,-150.0,0.0001093,30]
[407639598,1772592960201,-150.0,0.0001093,30]
[407639599,1772592960898,-150.0,0.0001093,30]
[407639600,1772592961660,-150.0,0.0001093,30]
[407639601,1772592962419,-150.0,0.0001093,30]
[407639602,1772592963249,-150.0,0.0001093,30]
[407639603,1772592963994,-150.0,0.0001093,30]
[407639604,1772592964912,-150.0,0.0001093,30]
[407639605,1772592965711,-150.0,0.0001093,30]
[407639606,1772592966994,-150.0,0.0001093,30]
[407639607,1772592967733,-150.0,0.0001093,30]
[407639608,1772592968523,-150.0,0.0001093,30]
[407639609,1772592969252,-150.0,0.0001093,30]
[407639610,1772592970037,-150.0,0.0001093,30]
[407639611,1772592971067,-150.0,0.0001093,30]
[407639612,1772592971594,-150.0,0.0001093,30]
[407639613,1772592972414,-150.0,0.0001093,30]
[407639614,1772592973271,-150.0,0.0001093,30]
[407639615,1772592974098,-150.0,0.0001093,30]
[407639616,1772592975015,-42.22950858,0.0001093,30]
[407639617,1772592975043,-107.77049142,0.0001094,30]
[407639618,1772592975778,-150.0,0.0001094,30]
[407639619,1772592976522,-150.0,0.0001094,30]
[407639620,1772592977293,-150.0,0.0001094,30]
[407639621,1772592978028,-150.0,0.0001094,30]
[407639622,1772592978831,-150.0,0.0001094,30]
[407639623,1772592979658,-150.0,0.0001094,30]
[407639624,1772592980324,-150.0,0.0001094,30]
[407639625,1772592982315,-150.0,0.0001094,30]
[407639626,1772592983234,-150.0,0.0001094,30]
[407639627,1772593150527,-150.0,0.0001094,30]
[407639628,1772593152312,-150.0,0.0001094,30]
[407639629,1772593153638,-150.0,0.0001094,30]
[407639630,1772593154718,-150.0,0.0001094,30]
[407639631,1772593155951,-150.0,0.0001094,30]
[407639632,1772593157269,-150.0,0.0001094,30]
[407639633,1772593158440,-150.0,0.0001094,30]
[407639634,1772593159533,-150.0,0.0001094,30]
[407639635,1772593160572,-150.0,0.0001094,30]
[407639636,1772593162112,-150.0,0.0001094,30]
[407639637,1772593183180,-42.22950858,0.0001094,30]
[407639638,1772593183201,-107.77049142,0.0001095,30]
[407639639,1772593184095,-150.0,0.0001095,30]
[407639640,1772593185111,-150.0,0.0001095,30]
[407639641,1772593186115,-150.0,0.0001095,30]
[407639642,1772593187070,-150.0,0.0001095,30]
[407639643,1772593190447,-150.0,0.0001095,30]
[407639644,1772593191369,-150.0,0.0001095,30]
[407639645,1772593192604,-150.0,0.0001095,30]
[407639646,1772593193767,-150.0,0.0001095,30]
[407639647,1772593194307,-150.0,0.0001095,30]
[407639652,1772593243446,-1954.48428295,9.792e-05,2]
[407639654,1772593395610,-150.0,0.0001095,30]
[407639655,1772593397154,-150.0,0.0001095,30]
[407639656,1772593398218,-150.0,0.0001095,30]
[407639657,1772593399367,-150.0,0.0001095,30]
[407639658,1772593400301,-150.0,0.0001095,30]
[407639659,1772593401249,-150.0,0.0001095,30]
[407639660,1772593402080,-150.0,0.0001095,30]
[407639661,1772593402859,-150.0,0.0001095,30]
[407639662,1772593403671,-150.0,0.0001095,30]
[407639663,1772593404594,-150.0,0.0001095,30]
[407639664,1772593441501,-473.88127943,9.792e-05,2]
[407639665,1772593441526,-515.12974552,9.842e-05,2]
[407639666,1772593441554,-2089.64372243,9.891e-05,2]
[407639667,1772593441576,-5381.36063918,0.0001,2]
[407639669,1772593483428,-42.22950858,0.0001095,30]
[407639670,1772593497432,-150.0,0.0001096,30]
[407639671,1772593498599,-150.0,0.0001096,30]
[407639672,1772593499529,-150.0,0.0001096,30]
[407639673,1772593500888,-150.0,0.0001096,30]
[407639674,1772593501243,-150.0,0.0001096,30]
[407639675,1772593502132,-150.0,0.0001096,30]
[407639676,1772593502949,-150.0,0.0001096,30]
[407639677,1772593505183,-150.0,0.0001096,30]
[407639678,1772593506109,-150.0,0.0001096,30]
[407639679,1772593507033,-150.0,0.0001096,30]
[407639680,1772593553073,-150.0,0.0001096,30]
[407639685,1772593637600,-150.0,0.0001096,30]
[407639686,1772593639480,-150.0,0.0001096,30]
[407639687,1772593640638,-150.0,0.0001096,30]
[407639688,1772593641657,-150.0,0.0001096,30]
[407639689,1772593642606,-150.0,0.0001096,30]
[407639690,1772593644306,-150.0,0.0001096,30]
[407639691,1772593645302,-150.0,0.0001096,30]
[407639692,1772593646600,-150.0,0.0001096,30]
[407639693,1772593647553,-150.0,0.0001096,30]
[407639694,1772593649041,-150.0,0.0001097,30]
[407639754,1772593832321,-384.768375,0.00010101,2]
[407639757,1772593838301,-316.99428791,0.00010101,2]
[407639819,1772593841471,-14.90968913,0.00010101,2]
[407639823,1772593843232,-4283.32764796,0.00010101,2]
[407639824,1772593843240,-1196.86572347,0.00010203,2]
[407639825,1772593843250,-173.65611011,0.0001041,2]
[407639826,1772593843341,-188.1344871,0.0001041,2]
[407639827,1772593843351,-564.73251033,0.0001041,2]
[407639828,1772593843362,-87.34240534,0.00010418,2]
[407639832,1772593846128,-417.48474527,0.00010418,2]
[407639833,1772593846138,-287.118,0.00010637,2]
[407639834,1772593846148,-431.857,0.00010658,2]
[407639835,1772593846158,-300.0,0.00010688,2]
[407639836,1772593846168,-300.0,0.00010689,2]
[407639837,1772593846177,-1030.6516598,0.0001069,2]
[407639838,1772593846186,-311.22184107,0.00010739,2]
[407639839,1772593846196,-935.78447704,0.000108,2]
[407639840,1772593846206,-1607.23484052,0.000108,2]
[407639841,1772593846216,-5633.47499946,0.00010848,2]
[407639842,1772593846226,-1407.58810495,0.0001089,2]
[407639843,1772593846252,-822.72720105,0.0001089,2]
[407639844,1772593846263,-292.83951701,0.00010894,2]
[407639845,1772593846273,-500.0,0.00010894,2]
[407639846,1772593846283,-500.0,0.00010894,2]
[407639847,1772593846293,-500.0,0.00010894,2]
[407639848,1772593846302,-500.0,0.00010894,2]
[407639849,1772593846312,-500.0,0.00010894,2]
[407639850,1772593846321,-500.0,0.00010894,2]
[407639851,1772593846331,-500.0,0.00010894,2]
[407639852,1772593846340,-500.0,0.00010894,2]
[407639853,1772593846350,-500.0,0.00010894,2]
[407639854,1772593846359,-500.0,0.00010894,2]
[407639855,1772593846369,-500.0,0.00010894,2]
[407639856,1772593846379,-500.0,0.00010894,2]
[407639857,1772593846388,-500.0,0.00010894,2]
[407639858,1772593846397,-331.06343626,0.00010894,2]
[407639860,1772593846406,-500.0,0.00010894,2]
[407639861,1772593846416,-153.78957117,0.00010894,2]
[407639862,1772593846425,-500.0,0.00010894,2]
[407639863,1772593846435,-500.0,0.00010894,2]
[407639864,1772593846445,-23.07317785,0.00010894,2]
[407639865,1772594130996,-150.0,0.0001097,30]
[407639866,1772594132689,-150.0,0.0001097,30]
[407639867,1772594133552,-150.0,0.0001097,30]
[407639868,1772594134327,-150.0,0.0001097,30]
[407639869,1772594135074,-150.0,0.0001097,30]
[407639870,1772594135845,-150.0,0.0001097,30]
[407639871,1772594137524,-150.0,0.0001097,30]
[407639872,1772594137776,-150.0,0.0001097,30]
[407639873,1772594138528,-150.0,0.0001097,30]
[407639874,1772594139412,-150.0,0.0001097,30]
[407639875,1772594403763,153.36,6.9e-05,2]
[407639876,1772594404044,153.36,7.3e-05,2]
[407639877,1772594404324,153.36,7.8e-05,2]
[407639878,1772594404612,153.36,8.2e-05,2]
[407639879,1772594404926,153.36,8.6e-05,2]
[407639884,1772594405169,153.36,9.1e-05,2]
[407639885,1772594405453,153.36,9.5e-05,2]
[407639886,1772594544498,11850.77625351,9.5e-05,2]
[407639920,1772595032360,-434.44183182,9.791e-05,2]
[407639949,1772595038401,-1046.1611717,9.791e-05,2]
[407639952,1772595038415,-160.0,9.828e-05,3]
[407639954,1772595038427,-220.11594952,9.89e-05,2]
[407639956,1772595038439,-251.56108516,9.89e-05,2]
[407639958,1772595038452,-392.67113137,9.89e-05,2]
[407639960,1772595038464,-498.27060759,0.0001002,2]
[407639963,1772595038476,-3456.78996601,0.0001007,2]
[407639965,1772595038490,-200.0,0.00010116,2]
[407639967,1772595038502,-267.53820814,0.0001041,2]
[407639970,1772595038515,-164.88244964,0.00010522,2]
[407639973,1772595038528,-251.22447211,0.00010523,2]
[407639976,1772595038540,-163.32409909,0.00010523,2]
[407639979,1772595038552,-207.48122738,0.00010739,2]
[407639983,1772595038563,-300.0,0.00010789,2]
[407639986,1772595038576,-2230.315306,0.0001079,2]
[407639988,1772595038587,-500.0,0.00010792,2]
[407639990,1772595038599,-500.0,0.00010792,2]
[407639993,1772595038611,-500.0,0.00010792,2]
[407639994,1772595038623,-500.0,0.00010792,2]
[407639997,1772595038635,-500.0,0.00010792,2]
[407639999,1772595038647,-500.0,0.00010792,2]
[407640001,1772595038660,-500.0,0.00010792,2]
[407640004,1772595038672,-300.0,0.00010792,2]
[407640006,1772595038684,-500.0,0.00010792,2]
[407640008,1772595038696,-500.0,0.00010792,2]
[407640010,1772595038707,-500.0,0.00010792,2]
[407640013,1772595038719,-500.0,0.00010792,2]
[407640015,1772595038731,-500.0,0.00010792,2]
[407640017,1772595038744,-500.0,0.00010792,2]
[407640020,1772595038756,-500.0,0.00010792,2]
[407640022,1772595038768,-500.0,0.00010792,2]
[407640024,1772595038780,-500.0,0.00010792,2]
[407640027,1772595038792,-550.0,0.00010792,2]
[407640029,1772595038804,-500.0,0.00010792,2]
[407640031,1772595038816,-500.0,0.00010792,2]
[407640033,1772595038828,-500.0,0.00010792,2]
[407640035,1772595038841,-500.0,0.00010792,2]
[407640038,1772595038853,-500.0,0.00010792,2]
[407640040,1772595038865,-500.0,0.00010792,2]
[407640042,1772595038877,-500.0,0.00010792,2]
[407640044,1772595038888,-500.0,0.00010792,2]
[407640047,1772595038900,-500.0,0.00010792,2]
[407640049,1772595038912,-500.0,0.00010792,2]
[407640051,1772595038923,-500.0,0.00010792,2]
[407640053,1772595038936,-500.0,0.00010792,2]
[407640056,1772595038948,-500.0,0.00010792,2]
[407640058,1772595038960,-500.0,0.00010792,2]
[407640060,1772595038972,-332.67504409,0.00010792,2]
[407640062,1772595038983,-258.41061406,0.00010792,2]
[407640065,1772595038995,-500.0,0.00010792,2]
[407640067,1772595039008,-500.0,0.00010792,2]
[407640069,1772595039020,-500.0,0.00010792,2]
[407640071,1772595039032,-500.0,0.00010792,2]
[407640073,1772595039044,-500.0,0.00010792,2]
[407640076,1772595039056,-500.0,0.00010792,2]
[407640078,1772595039067,-500.0,0.00010792,2]
[407640080,1772595039079,-500.0,0.00010792,2]
[407640082,1772595039091,-500.0,0.00010792,2]
[407640085,1772595039103,-500.0,0.00010792,2]
[407640087,1772595039115,-500.0,0.00010792,2]
[407640089,1772595039126,-500.0,0.00010792,2]
[407640091,1772595039138,-500.0,0.00010792,2]
[407640094,1772595039150,-500.0,0.00010792,2]
[407640096,1772595039162,-500.0,0.00010792,2]
[407640098,1772595039174,-500.0,0.00010792,2]
[407640100,1772595039186,-500.0,0.00010792,2]
[407640102,1772595039198,-326.9579148,0.00010799,2]
[407640105,1772595039210,-5353.76370864,0.000108,2]
[407640107,1772595039222,-12211.95246654,0.000108,2]
[407640109,1772595039234,-13039.83967838,0.000108,2]
[407640111,1772595039246,-866.70635607,0.000108,2]
[407640114,1772595039257,-1833.42444619,0.000108,2]
[407640116,1772595039269,-151.0,0.000108,2]
[407640118,1772595039280,-151.0,0.000108,2]
[407640120,1772595039292,-2101.68662732,0.00010848,2]
[407640123,1772595039304,-17688.5828677,0.000109,2]
[407640125,1772595039319,-26729.38576196,0.000109,2]
[407640223,1772595041185,-1677.10430567,0.000109,2]
[407640318,1772595043575,-1203.23266129,0.000109,2]
[407640347,1772595046401,-1041.66666667,0.000109,2]
[407640843,1772595054442,200.0,0.0001,10]
[407640844,1772595088194,-150.0,0.0001097,30]
[407640845,1772595089393,-150.0,0.0001097,30]
[407640846,1772595091352,-150.0,0.0001097,30]
[407640847,1772595092546,-150.0,0.0001097,30]
[407640848,1772595093790,-150.0,0.0001097,30]
[407640849,1772595094519,-150.0,0.0001097,30]
[407640850,1772595095477,-150.0,0.0001097,30]
[407640851,1772595096404,-150.0,0.0001097,30]
[407640852,1772595097480,-150.0,0.0001097,30]
[407640853,1772595098493,-150.0,0.0001098,30]
[407640858,1772595964148,163.46149785,9.439e-05,2]
[407640867,1772596170708,2722.90721121,9.502e-05,2]
[407640868,1772596202521,152.39,6.9e-05,2]
[407640869,1772596202808,152.39,7e-05,2]
[407640870,1772596203141,152.39,7.1e-05,2]
[407640871,1772596203479,152.39,7.3e-05,2]
[407640872,1772596203774,152.39,7.4e-05,2]
[407640873,1772596204051,152.39,7.5e-05,2]
[407640874,1772596204560,152.39,7.6e-05,2]
[407640875,1772596204634,152.39,7.8e-05,2]
[407640876,1772596204911,152.39,7.9e-05,2]
[407640877,1772596205296,152.39,8e-05,2]
[407640878,1772596205639,152.39,8.1e-05,2]
[407640879,1772596205865,152.39,8.3e-05,2]
[407640883,1772596208117,152.39,8.4e-05,2]
[407640884,1772596208410,152.39,8.5e-05,2]
[407640885,1772596208797,152.39,8.6e-05,2]
[407640886,1772596209110,152.39,8.8e-05,2]
[407640887,1772596210061,152.39,8.9e-05,2]
[407640888,1772596210395,152.39,9e-05,2]
[407640889,1772596210666,152.39,9.1e-05,2]
[407640890,1772596210939,152.39,9.3e-05,2]
[407640891,1772596211215,152.39,9.4e-05,2]
[407640892,1772596211499,152.39,9.5e-05,2]
[407640893,1772596228889,5000.0,9.502e-05,2]
[407640928,1772596237675,-488.30519544,9.771e-05,2]
[407640930,1772596237685,-284.32570028,9.89e-05,2]
[407640932,1772596237694,-324.94365746,9.89e-05,2]
[407640934,1772596237704,-507.21674032,9.89e-05,2]
[407640935,1772596237714,-866.0,9.95e-05,2]
[407640937,1772596237730,-500.0,9.993e-05,2]
[407640939,1772596237740,-500.0,9.993e-05,2]
[407640941,1772596237750,-500.0,9.993e-05,2]
[407640943,1772596237761,-500.0,9.993e-05,2]
[407640945,1772596237770,-500.0,9.993e-05,2]
[407640947,1772596237780,-500.0,9.993e-05,2]
[407640950,1772596237791,-500.0,9.993e-05,2]
[407640952,1772596237801,-500.0,9.993e-05,2]
[407640953,1772596237810,-500.0,9.993e-05,2]
[407640956,1772596237820,-500.0,9.993e-05,2]
[407640958,1772596237830,-500.0,9.993e-05,2]
[407640960,1772596237840,-500.0,9.993e-05,2]
[407640962,1772596237850,-500.0,9.993e-05,2]
[407640964,1772596237859,-500.0,9.993e-05,2]
[407640966,1772596237869,-500.0,9.993e-05,2]
[407640968,1772596237878,-500.0,9.993e-05,2]
[407640970,1772596237888,-500.0,9.993e-05,2]
[407640972,1772596237897,-500.0,9.993e-05,2]
[407640974,1772596237906,-500.0,9.993e-05,2]
[407640976,1772596237914,-500.0,9.993e-05,2]
[407640978,1772596237924,-500.0,9.993e-05,2]
[407640980,1772596237933,-500.0,9.993e-05,2]
[407640982,1772596237942,-53.56235804,9.993e-05,2]
[407640984,1772596237953,-338.005,9.993e-05,2]
[407641180,1772596240862,-108.43264196,9.993e-05,2]
[407641181,1772596240871,-350.91498998,9.993e-05,2]
[407641182,1772596240882,-149.08501002,9.993e-05,2]
[407641183,1772596240891,-327.34290124,9.993e-05,2]
[407641184,1772596240897,-500.0,9.993e-05,2]
[407641185,1772596240906,-500.0,9.993e-05,2]
[407641186,1772596240913,-500.0,9.993e-05,2]
[407641187,1772596240922,-94.05200492,9.993e-05,2]
[407641216,1772596247041,-405.94799508,9.993e-05,2]
[407641217,1772596247050,-500.0,9.993e-05,2]
[407641218,1772596247058,-500.0,9.993e-05,2]
[407641219,1772596247067,-500.0,9.993e-05,2]
[407641220,1772596247076,-500.0,9.993e-05,2]
[407641221,1772596247085,-500.0,9.993e-05,2]
[407641222,1772596247094,-500.0,9.993e-05,2]
[407641223,1772596247103,-500.0,9.993e-05,2]
[407641224,1772596247111,-500.0,9.993e-05,2]
[407641225,1772596247120,-500.0,9.993e-05,2]
[407641226,1772596247129,-500.0,9.993e-05,2]
[407641227,1772596247138,-500.0,9.993e-05,2]
[407641228,1772596247148,-500.0,9.993e-05,2]
[407641229,1772596247157,-500.0,9.993e-05,2]
[407641230,1772596247166,-207.38418715,9.993e-05,2]
[407641231,1772596247192,-500.0,9.993e-05,2]
[407641232,1772596247204,-500.0,9.993e-05,2]
[407641233,1772596247214,-500.0,9.993e-05,2]
[407641234,1772596247223,-455.45799857,9.993e-05,2]
[407641235,1772596247237,-44.54200143,9.993e-05,2]
[407641236,1772596247246,-500.0,9.993e-05,2]
[407641237,1772596247256,-500.0,9.993e-05,2]
[407641238,1772596247266,-500.0,9.993e-05,2]
[407641239,1772596247275,-500.0,9.993e-05,2]
[407641240,1772596247284,-500.0,9.993e-05,2]
[407641241,1772596247293,-500.0,9.993e-05,2]
[407641242,1772596247302,-221.22001852,9.993e-05,2]
[407641243,1772596247313,-500.0,9.993e-05,2]
[407641244,1772596247322,-500.0,9.993e-05,2]
[407641245,1772596247331,-500.0,9.993e-05,2]
[407641246,1772596247340,-500.0,9.993e-05,2]
[407641247,1772596247350,-500.0,9.993e-05,2]
[407641248,1772596247359,-500.0,9.993e-05,2]
[407641249,1772596247367,-500.0,9.993e-05,2]
[407641250,1772596247376,-500.0,9.993e-05,2]
[407641251,1772596247385,-500.0,9.993e-05,2]